bitfinex/quotes_SOLUSD_20241113
["timestamp","ask_amount","ask_price","bid_price","bid_amount"]
[1731519520894,160.5,216.86,216.81,22.40613427]
[1731519521092,160.5,216.86,216.85,22.53162427]
[1731519521406,160.5,216.92,216.89,20.0]
[1731519521698,0.4272735,216.97,216.92,43.902374]
[1731519522693,0.4272735,216.97,216.96,22.40613427]
[1731519523300,0.4272735,216.97,216.96,24.24973427]
[1731519523777,160.9272735,216.97,216.94,22.40613427]
[1731519523984,160.9272735,216.97,216.92,22.40613427]
[1731519524194,160.9272735,216.97,216.95,22.40613427]
[1731519524378,160.9272735,216.97,216.96,22.40613427]
[1731519525200,160.9272735,216.97,216.95,23.78883427]
[1731519525510,160.9272735,216.97,216.96,22.40613427]
[1731519526002,160.9272735,216.97,216.95,22.40613427]
[1731519526294,0.4272735,216.97,216.96,22.40613427]
[1731519527085,0.4272735,216.97,216.96,42.53162427]
[1731519527282,0.4272735,216.97,216.96,45.285074]
[1731519527487,0.4272735,216.97,216.96,67.79120827]
[1731519528604,0.4272735,216.97,216.96,67.69120827]
[1731519528983,0.4272735,216.97,216.96,43.78883427]
[1731519529282,0.4272735,216.97,216.95,22.40613427]
[1731519529489,0.4272735,216.97,216.93,3.4571]
[1731519529490,0.4272735,216.97,216.93,25.86323427]
[1731519529692,0.4272735,216.97,216.93,27.24613427]
[1731519529892,160.5,216.96,216.94,22.40613427]
[1731519530103,160.5,216.96,216.93,27.24613427]
[1731519530399,160.5,216.96,216.94,22.40613427]
[1731519530984,160.5,216.96,216.95,22.53162427]
[1731519531187,160.5,216.96,216.95,43.91442427]
[1731519531392,0.4272735,216.97,216.96,43.776884]
[1731519531594,0.4272735,216.97,216.96,66.18301827]
[1731519532183,0.4272735,216.97,216.96,66.28301827]
[1731519532590,0.4272735,216.97,216.96,88.68915254]
[1731519532924,160.5,217.11,217.02,0.1]
[1731519533084,160.5,217.16,217.1,22.40613427]
[1731519533290,160.5,217.15,217.14,22.40613427]
[1731519533705,165.1051,217.15,217.11,22.40613427]
[1731519534017,194.7060048,217.15,217.05,4.8375]
[1731519534306,160.5,217.14,217.1,22.40613427]
[1731519534485,160.5,217.13,217.09,22.40613427]
[1731519534685,160.5,217.13,217.11,22.40613427]
[1731519534892,160.5,217.13,217.1,22.40613427]
[1731519535091,160.5,217.13,217.09,22.40613427]
[1731519535403,165.1055,217.13,217.09,22.40613427]
[1731519535788,165.1055,217.13,217.08,22.40613427]
[1731519536117,165.1055,217.13,217.09,22.40613427]
[1731519536403,160.5,217.13,217.09,22.40613427]
[1731519536907,165.1056,217.13,217.05,4.8375]
[1731519537091,160.5,217.12,217.09,22.40613427]
[1731519537299,160.5,217.12,217.03,22.40613427]
[1731519537300,160.5,217.12,217.11,22.40613427]
[1731519537807,160.5,217.12,217.07,20.0]
[1731519538207,160.5,217.11,217.07,20.0]
[1731519538506,160.5,217.1,217.02,3.4558]
[1731519538699,160.5,217.09,217.02,3.4558]
[1731519538897,22.40613427,217.06,216.99,1.3825]
[1731519539106,160.5,217.05,216.99,23.78863427]
[1731519539308,160.5,217.05,216.99,22.40613427]
[1731519539499,165.1072,217.05,216.97,3.4565]
[1731519539696,160.5,217.11,217.04,22.50613427]
[1731519539901,160.5,217.14,217.08,22.40613427]
[1731519540097,160.5,217.13,217.09,22.40613427]
[1731519540417,7.19477053,217.15,217.04,23.776884]
[1731519540593,160.5,217.14,217.09,22.40613427]
[1731519540791,196.86174316,217.13,217.05,36.36174316]
[1731519540993,160.5,217.13,217.07,36.36174316]
[1731519541422,160.5,217.13,217.08,36.36174316]
[1731519541602,36.46174316,217.11,216.96,12.73668453]
[1731519541805,36.36174316,217.04,216.97,18.410158]
[1731519542007,36.36174316,217.0,216.92,4.8402]
[1731519542312,160.5,216.99,216.93,36.36174316]
[1731519542821,160.5,216.99,216.95,36.36174316]
[1731519542993,160.5,216.99,216.97,36.36174316]
[1731519543311,4.6065,217.08,216.97,3.4565]
[1731519543645,160.5,217.07,217.06,36.36174316]
[1731519543921,43.8255,217.12,217.06,36.36174316]
[1731519544119,5.63901644,217.18,217.12,20.0]
[1731519544120,160.5,217.18,217.12,20.0]
[1731519544319,160.5,217.18,217.17,36.36174316]
[1731519544495,0.4272735,217.19,217.17,56.36174316]
[1731519544805,0.4272735,217.19,217.18,36.36174316]
[1731519545310,0.4272735,217.19,217.18,81.51992716]
[1731519546788,0.4272735,217.19,217.18,45.158184]
[1731519546989,0.4272735,217.19,217.18,56.36174316]
[1731519547200,0.4272735,217.19,217.15,20.0]
[1731519547400,160.5,217.18,217.12,41.19754316]
[1731519547603,196.86174316,217.17,217.02,3.4559]
[1731519547915,160.5,217.16,217.08,36.36174316]
[1731519548112,160.5,217.15,217.04,0.1]
[1731519548291,160.5,217.15,217.09,36.36174316]
[1731519548496,160.5,217.15,217.04,0.1]
[1731519548497,36.36174316,217.11,217.02,4.8382]
[1731519548690,0.4272735,217.19,217.1,36.36174316]
[1731519548956,0.4272735,217.19,217.17,36.36174316]
[1731519549098,0.4272735,217.19,217.04,0.12549]
[1731519549099,0.4272735,217.19,217.14,0.1]
[1731519549296,0.4272735,217.19,217.15,4.8353]
[1731519549512,0.4272735,217.19,217.18,36.36174316]
[1731519549715,0.4272735,217.19,217.18,56.36174316]
[1731519550019,0.4272735,217.19,217.18,80.13862716]
[1731519551510,0.4272735,217.19,217.18,81.51992716]
[1731519552614,0.4272735,217.19,217.18,45.158184]
[1731519552819,0.4272735,217.19,217.18,81.51992716]
[1731519553323,160.5,217.29,217.2,0.1]
[1731519553537,32.3606,217.32,217.28,36.36174316]
[1731519553538,160.5,217.31,217.28,36.36174316]
[1731519553735,160.5,217.34,217.31,20.0]
[1731519554020,196.86174316,217.4,217.33,36.36174316]
[1731519554323,167.6875082,217.39,217.33,36.36174316]
[1731519554533,167.6875082,217.39,217.34,36.36174316]
[1731519554534,160.5,217.38,217.34,36.36174316]
[1731519554912,160.5,217.38,217.35,36.36174316]
[1731519555219,160.5,217.37,217.35,35.86174316]
[1731519555427,160.5,217.36,217.34,1.3802]
[1731519555608,160.5,217.35,217.34,1.3802]
[1731519555812,160.5,217.38,217.34,1.3802]
[1731519556114,160.5,217.37,217.34,1.3802]
[1731519556320,160.5,217.36,217.34,1.3802]
[1731519556708,160.5,217.36,217.33,36.36174316]
[1731519557105,160.5,217.36,217.35,36.36174316]
[1731519557413,7.1875082,217.39,217.35,36.36174316]
[1731519557616,7.1875082,217.39,217.3,20.0]
[1731519557823,7.1875082,217.39,217.36,36.36174316]
[1731519558413,7.1875082,217.39,217.37,36.36174316]
[1731519558814,7.1875082,217.39,217.36,36.36174316]
[1731519559218,7.1875082,217.39,217.32,3.451]
[1731519559512,7.1875082,217.39,217.38,36.36174316]
[1731519560432,0.4272735,217.41,217.38,36.36174316]
[1731519560931,0.4272735,217.41,217.37,36.36174316]
[1731519561135,0.4272735,217.41,217.34,4.8311]
[1731519561334,0.4272735,217.41,217.36,36.36174316]
[1731519561516,0.4272735,217.41,217.33,36.36174316]
[1731519561517,196.86174316,217.4,217.33,36.36174316]
[1731519561719,160.5,217.39,217.34,36.36174316]
[1731519562107,160.5,217.39,217.31,36.36174316]
[1731519562108,36.36174316,217.38,217.31,36.36174316]
[1731519562313,36.36174316,217.35,217.28,37.74244316]
[1731519562619,160.5,217.34,217.3,3.4514]
[1731519562819,160.5,217.34,217.3,36.36174316]
[1731519563226,160.5,217.34,217.24,0.1]
[1731519563525,160.5,217.34,217.26,44.002374]
[1731519563726,160.5,217.34,217.33,36.36174316]
[1731519563948,41.38861666,217.41,217.33,36.36174316]
[1731519564124,196.86174316,217.4,217.34,36.36174316]
[1731519564438,201.46154316,217.4,217.34,36.36174316]
[1731519564635,36.36174316,217.38,217.31,36.36174316]
[1731519565119,165.0998,217.4,217.34,36.36174316]
[1731519565455,201.46154316,217.4,217.33,36.36174316]
[1731519565639,36.36174316,217.37,217.25,3.4521]
[1731519565824,160.5,217.36,217.31,36.36174316]
[1731519566137,160.5,217.35,217.31,36.36174316]
[1731519566635,36.36174316,217.32,217.25,36.36174316]
[1731519566821,160.5,217.31,217.26,36.36174316]
[1731519567026,160.5,217.31,217.22,0.12549]
[1731519567217,160.5,217.31,217.21,4.8339]
[1731519567418,160.5,217.3,217.21,4.9339]
[1731519567714,160.5,217.34,217.29,36.36174316]
[1731519567917,160.5,217.33,217.3,36.36174316]
[1731519568238,160.5,217.32,217.3,36.36174316]
[1731519568421,160.5,217.32,217.31,36.36174316]
[1731519568736,160.5,217.34,217.31,36.36174316]
[1731519569036,71.95321666,217.41,217.3,4.8319]
[1731519569037,22.31905473,217.39,217.32,22.31905473]
[1731519569226,182.81905473,217.38,217.31,22.31905473]
[1731519569532,160.5,217.37,217.31,22.31905473]
[1731519569941,160.5,217.37,217.33,22.31905473]
[1731519570240,160.5,217.36,217.3,4.8319]
[1731519570439,160.5,217.36,217.33,23.69935473]
[1731519570732,160.5,217.35,217.3,3.4514]
[1731519570934,167.68862147,217.35,217.3,3.4514]
[1731519571341,167.68862147,217.35,217.3,25.77045473]
[1731519571635,167.68862147,217.35,217.3,3.4514]
[1731519571843,167.68862147,217.35,217.29,22.31905473]
[1731519572942,167.68862147,217.35,217.3,22.31905473]
[1731519573233,167.68862147,217.35,217.29,23.69955473]
[1731519573435,172.28952147,217.35,217.29,23.69955473]
[1731519573843,194.6085762,217.35,217.26,1.3807]
[1731519574042,22.31905473,217.32,217.25,22.31905473]
[1731519574332,22.31905473,217.33,217.25,22.31905473]
[1731519574537,22.31905473,217.33,217.26,22.31905473]
[1731519574925,4.6013,217.33,217.27,22.31905473]
[1731519575428,22.31905473,217.32,217.26,1.3808]
[1731519575618,160.5,217.31,217.26,1.3808]
[1731519575820,160.5,217.3,217.26,23.69985473]
[1731519576021,160.5,217.29,217.21,4.8339]
[1731519576238,160.5,217.28,217.22,22.31905473]
[1731519576446,160.5,217.28,217.21,27.15295473]
[1731519576643,22.31905473,217.23,217.17,3.4535]
[1731519576817,182.81905473,217.22,217.17,3.4535]
[1731519577016,160.5,217.22,217.18,22.31905473]
[1731519577230,160.5,217.22,217.17,4.8349]
[1731519577740,160.5,217.22,217.17,3.4535]
[1731519577934,22.31905473,217.2,217.13,3.454]
[1731519578140,22.31905473,217.18,217.11,22.31905473]
[1731519578346,160.5,217.17,217.13,22.31905473]
[1731519578727,160.5,217.17,217.12,22.31905473]
[1731519578926,160.5,217.17,217.11,22.31905473]
[1731519579344,187.42375473,217.17,217.11,1.3817]
[1731519579529,22.31905473,217.15,217.08,25.77385473]
[1731519579724,22.31905473,217.13,217.08,3.4548]
[1731519579938,160.5,217.12,217.08,4.8367]
[1731519580140,160.5,217.17,217.09,0.12549]
[1731519580444,160.5,217.17,217.14,22.31905473]
[1731519580643,12.4326,217.18,217.14,22.31905473]
[1731519580644,160.5,217.16,217.14,22.31905473]
[1731519581033,160.5,217.15,217.14,22.31905473]
[1731519581345,12.4326,217.18,217.14,22.31905473]
[1731519581642,7.19284436,217.21,217.16,22.31905473]
[1731519581851,7.19284436,217.21,217.1,24.8364]
[1731519582060,7.19284436,217.21,217.11,0.1]
[1731519582224,11.8304,217.24,217.19,22.31905473]
[1731519582547,11.8304,217.24,217.18,22.31905473]
[1731519582725,34.14945473,217.24,217.16,20.0]
[1731519583040,11.8304,217.24,217.18,22.31905473]
[1731519583248,11.8304,217.24,217.19,23.70025473]
[1731519583540,11.8304,217.24,217.19,4.8343]
[1731519584420,22.31905473,217.23,217.19,3.4531]
[1731519584643,22.31905473,217.22,217.19,3.4531]
[1731519584842,22.31905473,217.23,217.19,3.4531]
[1731519585352,22.31905473,217.2,217.14,3.4538]
[1731519585528,160.5,217.19,217.14,4.8353]
[1731519585730,160.5,217.3,217.18,22.41905473]
[1731519585944,160.5,217.29,217.26,22.31905473]
[1731519586128,160.5,217.28,217.26,22.31905473]
[1731519586528,160.5,217.28,217.24,22.31905473]
[1731519586848,160.5,217.27,217.22,22.31905473]
[1731519587153,160.5,217.27,217.21,22.31905473]
[1731519587330,160.5,217.26,217.21,23.70005473]
[1731519588059,160.5,217.26,217.21,27.15285473]
[1731519588551,160.5,217.26,217.21,25.77185473]
[1731519588722,160.5,217.26,217.21,3.4528]
[1731519588928,160.5,217.26,217.21,24.8339]
[1731519589330,160.5,217.26,217.21,47.15295473]
[1731519589841,160.5,217.26,217.21,24.8339]
[1731519590140,160.5,217.26,217.22,22.31905473]
[1731519590650,160.5,217.28,217.24,42.31905473]
[1731519590953,160.5,217.28,217.24,20.0]
[1731519591133,160.5,217.28,217.26,22.31905473]
[1731519591533,160.5,217.37,217.27,1.3807]
[1731519591739,160.5,217.4,217.29,20.0]
[1731519591934,160.5,217.39,217.33,22.31905473]
[1731519592258,160.5,217.38,217.33,22.31905473]
[1731519593539,160.5,217.38,217.33,23.69935473]
[1731519594930,160.5,217.38,217.34,22.31905473]
[1731519596252,160.5,217.38,217.15,1.3815]
[1731519596253,160.5,217.32,217.15,1.3815]
[1731519596549,22.31905473,217.27,217.19,22.31905473]
[1731519596751,160.5,217.26,217.19,22.31905473]
[1731519596943,22.31905473,217.23,217.15,27.15435473]
[1731519597138,22.31905473,217.25,217.17,22.31905473]
[1731519597338,22.31905473,217.23,217.17,22.31905473]
[1731519597645,22.31905473,217.25,217.17,22.31905473]
[1731519597944,160.5,217.24,217.21,22.31905473]
[1731519598455,160.5,217.27,217.21,22.31905473]
[1731519598655,160.5,217.26,217.21,22.31905473]
[1731519599034,160.5,217.26,217.22,22.31905473]
[1731519599336,160.5,217.25,217.22,22.31905473]
[1731519599738,160.5,217.24,217.22,22.31905473]
[1731519600461,160.5,217.24,217.19,22.31905473]
[1731519600653,160.5,217.24,217.15,4.8353]
[1731519600654,160.5,217.24,217.18,22.31905473]
[1731519601039,0.12549,217.18,217.03,18.407302]
[1731519601253,22.31905473,217.12,217.03,25.77475473]
[1731519601443,160.5,217.11,217.03,25.77475473]
[1731519601761,22.31905473,217.08,217.0,1.3824]
[1731519601957,22.31905473,217.06,216.99,23.70155473]
[1731519602155,160.5,217.05,216.99,23.70155473]
[1731519602353,160.5,217.05,217.01,22.31905473]
[1731519602753,160.5,217.05,216.99,4.8388]
[1731519602977,160.5,217.05,217.03,37.75552189]
[1731519603263,167.69745788,217.05,217.02,36.37332189]
[1731519603449,167.69745788,217.05,217.04,56.37332189]
[1731519603645,7.19745788,217.05,217.04,56.37332189]
[1731519603857,160.5,217.13,217.05,43.776884]
[1731519604064,160.5,217.19,217.12,36.37332189]
[1731519604247,160.5,217.18,217.14,36.37332189]
[1731519604446,167.69404967,217.18,217.14,36.37332189]
[1731519604762,160.5,217.17,217.06,0.2]
[1731519604973,7.19404967,217.18,217.16,36.37332189]
[1731519605163,7.19404967,217.18,217.17,37.75472189]
[1731519605782,160.5,217.24,217.17,41.20822189]
[1731519606070,7.19201244,217.22,217.19,36.37332189]
[1731519606269,7.19201244,217.22,217.21,56.37332189]
[1731519606465,160.5,217.3,217.22,20.0]
[1731519606658,160.5,217.29,217.28,36.37332189]
[1731519606857,160.5,217.31,217.28,36.37332189]
[1731519607654,167.68897679,217.31,217.28,36.37332189]
[1731519608170,160.5,217.3,217.28,36.37332189]
[1731519608804,160.5,217.3,217.24,36.37332189]
[1731519609020,36.37332189,217.25,217.18,56.37332189]
[1731519609147,160.5,217.24,217.1,4.8364]
[1731519609346,160.5,217.23,217.1,4.8364]
[1731519609554,187.978,217.23,217.1,3.4546]
[1731519609971,187.978,217.23,217.1,4.8364]
[1731519610471,160.5,217.22,217.1,4.8364]
[1731519610671,36.37332189,217.2,217.13,36.37332189]
[1731519610877,40.97712189,217.21,217.13,36.37332189]
[1731519611565,160.5,217.2,217.14,36.37332189]
[1731519611769,36.37332189,217.15,216.99,10.692]
[1731519611967,160.5,217.14,217.06,36.37332189]
[1731519612271,196.87332189,217.13,217.06,36.37332189]
[1731519612571,160.5,217.13,217.08,36.37332189]
[1731519613070,160.5,217.12,217.06,36.37332189]
[1731519613256,160.5,217.12,217.02,1.3823]
[1731519613257,160.5,217.12,217.08,36.37332189]
[1731519613853,160.5,217.12,217.1,36.37332189]
[1731519614777,160.5,217.12,217.11,36.37332189]
[1731519614978,160.5,217.17,217.11,36.37332189]
[1731519615160,160.5,217.16,217.15,36.37332189]
[1731519615971,160.5,217.16,217.15,1.3815]
[1731519616858,160.5,217.16,217.14,39.82722189]
[1731519616859,160.5,217.16,217.14,36.37332189]
[1731519617259,160.5,217.16,217.15,56.37332189]
[1731519617677,160.5,217.22,217.15,56.37332189]
[1731519617969,32.0815,217.23,217.15,56.37332189]
[1731519617970,160.5,217.21,217.17,36.37332189]
[1731519618163,167.68926334,217.21,217.17,36.37332189]
[1731519618480,160.5,217.2,217.19,36.37332189]
[1731519618671,7.18926334,217.21,217.19,36.37332189]
[1731519620360,11.79306334,217.21,217.13,36.37332189]
[1731519620556,36.37332189,217.2,217.13,36.37332189]
[1731519620964,36.37332189,217.19,217.11,37.75502189]
[1731519621680,36.37332189,217.14,217.07,36.37332189]
[1731519621857,36.37332189,217.13,217.06,36.37332189]
[1731519622270,36.37332189,217.14,217.06,36.37332189]
[1731519622464,36.37332189,217.11,217.04,36.37332189]
[1731519622665,10.1267,217.13,217.06,36.37332189]
[1731519622872,170.6267,217.13,217.06,36.37332189]
[1731519623064,196.87332189,217.12,216.97,0.12549]
[1731519623267,196.87332189,217.11,217.03,36.37332189]
[1731519623485,4.6063,217.09,217.03,36.37332189]
[1731519623786,4.6063,217.09,217.04,36.37332189]
[1731519624029,165.1062,217.1,217.04,36.37332189]
[1731519624278,165.1062,217.1,217.05,36.37332189]
[1731519624477,165.1062,217.1,217.03,36.37332189]
[1731519624863,165.1062,217.1,217.04,36.37332189]
[1731519626113,36.37332189,217.08,217.0,36.37332189]
[1731519626277,160.5,217.07,217.01,36.37332189]
[1731519626582,160.5,217.07,217.02,36.37332189]
[1731519627281,165.1068,217.07,217.01,36.37332189]
[1731519628191,165.1068,217.07,216.92,36.37332189]
[1731519628192,160.5,217.06,217.0,36.37332189]
[1731519628394,196.87332189,217.05,216.98,36.37332189]
[1731519628573,160.5,217.05,216.93,3.4573]
[1731519628776,160.5,217.04,216.94,0.12549]
[1731519628978,160.5,217.03,216.94,0.12549]
[1731519629290,160.5,217.06,217.02,36.37332189]
[1731519629467,160.5,217.05,216.96,4.8395]
[1731519629673,160.5,217.04,216.96,4.8395]
[1731519630062,160.5,217.04,216.98,20.0]
[1731519630864,160.5,217.04,217.02,36.37332189]
[1731519631077,160.5,217.03,217.0,36.37332189]
[1731519631389,160.5,217.03,217.01,36.37332189]
[1731519631568,160.5,217.03,217.02,36.37332189]
[1731519632589,160.5,217.03,216.98,3.4565]
[1731519632772,160.5,217.03,217.0,36.37332189]
[1731519632974,165.1077,217.03,217.01,22.39071854]
[1731519633173,160.5,217.03,217.02,22.39071854]
[1731519633378,165.1076,217.03,216.98,3.4565]
[1731519633603,165.1076,217.03,216.96,1.3827]
[1731519633771,160.5,217.02,216.93,3.4571]
[1731519633971,10.6479,217.01,216.93,3.4571]
[1731519634279,160.5,217.0,216.89,3.4579]
[1731519634586,160.5,216.99,216.92,22.39071854]
[1731519635380,160.5,216.99,216.93,4.8402]
[1731519636185,160.5,216.99,216.98,22.39071854]
[1731519636491,230.09570145,217.36,216.98,22.39071854]
[1731519636492,160.5,217.0,216.98,22.39071854]
[1731519636688,160.5,217.0,216.93,24.8402]
[1731519636892,160.5,217.04,216.93,24.8402]
[1731519637275,165.1074,217.04,217.01,22.39071854]
[1731519637590,165.1077,217.03,216.93,23.4573]
[1731519637773,160.5,217.02,216.96,22.39071854]
[1731519638192,160.5,217.02,216.99,22.39071854]
[1731519638390,160.5,217.01,216.92,22.39071854]
[1731519638592,160.5,217.0,216.99,22.39071854]
[1731519638892,160.5,216.99,216.91,0.12549]
[1731519639096,160.5,216.98,216.91,20.12549]
[1731519639280,160.5,216.98,216.97,22.39071854]
[1731519639477,4.6072,217.05,216.97,22.39071854]
[1731519639808,167.68911154,217.04,217.02,22.39071854]
[1731519639990,160.5,217.03,217.02,22.39071854]
[1731519640169,160.5,217.03,216.95,1.3827]
[1731519640373,160.5,217.02,216.99,22.39071854]
[1731519640791,160.5,217.02,217.0,22.39071854]
[1731519640994,7.18911154,217.04,217.01,22.39071854]
[1731519641199,7.18911154,217.04,217.03,22.39071854]
[1731519641571,15.4868,217.06,217.03,22.39071854]
[1731519641901,15.4868,217.06,217.05,22.39071854]
[1731519642199,10.8798,217.06,217.05,22.39071854]
[1731519643486,26.8542,217.1,217.05,23.77281854]
[1731519643676,22.39071854,217.06,216.95,3.4569]
[1731519643988,31.4605,217.1,217.03,22.39071854]
[1731519644181,31.4605,217.1,217.07,22.39071854]
[1731519644589,31.4605,217.1,217.08,22.39071854]
[1731519644793,7.18707555,217.09,217.08,22.39071854]
[1731519645295,11.79337555,217.09,217.06,22.39071854]
[1731519645493,172.29337555,217.09,217.07,22.39071854]
[1731519645694,167.68707555,217.09,217.08,22.39071854]
[1731519646378,7.18707555,217.09,217.08,22.39071854]
[1731519646996,7.18707555,217.09,217.08,42.39071854]
[1731519647199,7.18707555,217.09,217.08,43.77261854]
[1731519648084,7.18707555,217.09,217.07,22.39071854]
[1731519648789,7.18707555,217.09,217.08,22.39071854]
[1731519649490,10.5523,217.17,217.09,20.0]
[1731519649689,10.5523,217.17,217.16,22.39071854]
[1731519650107,7.18432411,217.18,217.16,22.39071854]
[1731519650279,10.8877,217.22,217.17,22.39071854]
[1731519650484,160.5,217.35,217.25,0.1]
[1731519650799,160.5,217.4,217.33,22.39071854]
[1731519651000,160.5,217.4,217.35,22.39071854]
[1731519651176,167.68775957,217.39,217.35,22.39071854]
[1731519651798,172.28795957,217.39,217.33,22.39071854]
[1731519652488,194.67867811,217.39,217.31,22.39071854]
[1731519653591,22.39071854,217.35,217.28,22.39071854]
[1731519653794,160.5,217.34,217.28,22.39071854]
[1731519654396,160.5,217.34,217.27,22.39071854]
[1731519654591,160.5,217.33,217.27,22.39071854]
[1731519654983,182.89071854,217.33,217.26,22.39071854]
[1731519655208,22.39071854,217.32,217.24,22.39071854]
[1731519655404,4.6016,217.32,217.25,22.39071854]
[1731519655594,160.5,217.31,217.25,22.39071854]
[1731519655794,160.5,217.31,217.26,22.39071854]
[1731519656187,160.5,217.31,217.27,22.39071854]
[1731519656394,160.5,217.31,217.26,22.39071854]
[1731519656903,160.5,217.3,217.24,22.39071854]
[1731519657105,182.89071854,217.29,217.22,22.39071854]
[1731519657283,187.49301854,217.28,217.2,22.39071854]
[1731519657485,187.49301854,217.28,217.17,3.4534]
[1731519657486,160.5,217.27,217.26,22.39071854]
[1731519657784,160.5,217.26,217.17,4.8348]
[1731519658179,160.5,217.26,217.24,22.39071854]
[1731519659488,160.5,217.26,217.25,22.39071854]
[1731519659887,160.5,217.3,217.26,20.0]
[1731519660191,160.5,217.33,217.29,22.39071854]
[1731519660388,160.5,217.32,217.28,22.39071854]
[1731519660578,160.5,217.32,217.29,22.39071854]
[1731519660779,160.5,217.32,217.3,22.39071854]
[1731519661306,160.5,217.32,217.31,22.39071854]
[1731519661527,167.6678233,217.32,217.26,4.8328]
[1731519661801,165.1015,217.32,217.26,22.39071854]
[1731519661987,167.66900165,217.31,217.24,22.39071854]
[1731519662193,0.12549,217.29,217.16,3.4535]
[1731519662383,0.12549,217.27,217.16,3.4535]
[1731519662583,0.12549,217.23,217.11,4.836]
[1731519662779,160.5,217.22,217.11,4.836]
[1731519663183,4.6038,217.21,217.14,22.39071854]
[1731519663580,22.39071854,217.19,217.12,22.39071854]
[1731519663799,160.62549,217.2,217.14,22.39071854]
[1731519663992,160.5,217.2,217.17,22.39071854]
[1731519664195,160.5,217.19,217.18,22.39071854]
[1731519664606,160.5,217.19,217.17,22.39071854]
[1731519664904,10.446,217.24,217.05,0.1]
[1731519664905,182.89071854,217.18,217.05,1.3821]
[1731519665090,160.5,217.17,217.11,22.39071854]
[1731519665289,160.5,217.16,217.12,22.39071854]
[1731519665888,160.5,217.16,217.11,22.39071854]
[1731519666109,160.5,217.16,217.12,22.39071854]
[1731519666288,160.5,217.16,217.13,22.39071854]
[1731519666689,4.6051,217.15,217.12,22.39071854]
[1731519666914,160.5,217.16,217.13,22.39071854]
[1731519667102,160.5,217.16,217.14,22.39071854]
[1731519667413,0.2,217.25,217.07,20.0]
[1731519667414,160.5,217.2,217.15,22.39071854]
[1731519667712,160.5,217.2,217.18,22.39071854]
[1731519667889,160.5,217.19,217.18,22.39071854]
[1731519668090,160.5,217.19,217.16,22.39071854]
[1731519668285,160.5,217.19,217.18,22.39071854]
[1731519668785,95.5,217.56,217.18,22.39071854]
[1731519668786,160.5,217.38,217.21,0.1]
[1731519669036,160.5,217.37,217.3,42.39071854]
[1731519669228,160.5,217.36,217.31,23.776884]
[1731519669392,165.0998,217.4,217.36,22.39071854]
[1731519669591,160.5,217.39,217.36,22.39071854]
[1731519669796,160.5,217.39,217.32,20.0]
[1731519670011,160.5,217.39,217.37,22.39071854]
[1731519670522,165.1,217.39,217.34,22.39071854]
[1731519670700,187.49071854,217.39,217.31,22.39071854]
[1731519671010,0.12549,217.37,217.31,22.39071854]
[1731519671205,160.5,217.38,217.34,22.39071854]
[1731519671410,160.5,217.38,217.28,23.776884]
[1731519671704,160.5,217.38,217.32,22.39071854]
[1731519671913,0.12549,217.37,217.31,22.39071854]
[1731519672101,0.12549,217.37,217.32,22.39071854]
[1731519672302,4.6006,217.36,217.32,22.39071854]
[1731519672601,4.6006,217.36,217.33,22.39071854]
[1731519672809,4.6006,217.36,217.32,22.39071854]
[1731519673113,4.6006,217.36,217.33,22.39071854]
[1731519673498,4.6006,217.36,217.32,22.39071854]
[1731519673698,4.6006,217.36,217.33,22.39071854]
[1731519674410,160.62549,217.35,217.29,22.39071854]
[1731519674592,22.39071854,217.34,217.27,20.0]
[1731519674793,160.5,217.35,217.28,22.39071854]
[1731519674794,160.62549,217.33,217.28,22.39071854]
[1731519674994,0.12549,217.31,217.22,3.4526]
[1731519675195,170.4703,217.3,217.18,3.4533]
[1731519675614,0.12549,217.29,217.18,3.4533]
[1731519675809,160.5,217.28,217.18,3.4533]
[1731519676196,160.5,217.28,217.23,22.39071854]
[1731519676416,160.5,217.28,217.22,22.39071854]
[1731519676610,22.39071854,217.23,217.09,11.0241]